Cogmind - Beta 11.1 @@@ ROGUE MODE // 2022.05.21 @ 22:08:50 Player: servo Result: Destroyed by G-34 Mercenary with Small Laser Performance ------------- Evolutions (0) 0 Regions Visited (1) 200 Robots Destroyed (5) 25 Value Destroyed (98) 98 Prototype IDs (0) 0 Alien Tech Used (0) 0 Bonus (0) 0 TOTAL SCORE: 323 Bonus ------- None Cogmind --------- Core Integrity 0/250 Matter 213/300 Energy 100/100 System Corruption 0% Temperature Cool (15) Movement Core (700) Ox13 Location -10/Materials Parts ------- > --- POWER (1) -------- (None) > --- PROPULSION (2) --- (None) > --- UTILITY (2) ------ High-capacity Storage Unit ECM Suite > --- WEAPON (2) ------- (None) > --- INVENTORY (20) --- Light Treads Light Treads Aluminum Leg Medium Matter Pod (0) Datajack Peak State ------------ > --- POWER ------------ Ion Engine > --- PROPULSION ------- Light Treads Light Treads > --- UTILITY ---------- Small Storage Unit ECM Suite > --- WEAPON ----------- Assault Rifle Assault Rifle > --- INVENTORY -------- (None) [Rating: 7] Favorites ----------- Power Ion Engine Engine Ion Engine Propulsion Aluminum Leg Treads Light Treads Leg Aluminum Leg Flight Unit Flight Unit Utility Small Storage Unit Device ECM Suite Storage Small Storage Unit Weapon Assault Rifle Ballistic Gun Assault Rifle Build | -11 -10 ------- Run | Scr Mat Slots Evolved . | . . Power . | . . Propulsion . | . . Utility . | . . Weapon . | . . Parts Attached 15 | 6 9 Power 2 | 1 1 Engine 2 | 1 1 Core . | . . Reactor . | . . Propulsion 8 | 2 6 Treads 3 | 2 1 Leg 2 | . 2 Wheel . | . . Hover . | . . Flight 3 | . 3 Utility 3 | 1 2 Device 1 | . 1 Storage 2 | 1 1 Processor . | . . Hackware . | . . Protection . | . . Artifact . | . . Weapon 2 | 2 . Energy Gun . | . . Energy Cannon . | . . Ballistic Gun 2 | 2 . Ballistic Cannon . | . . Launcher . | . . Special Weapon . | . . Impact Weapon . | . . Slashing Weapon . | . . Piercing Weapon . | . . Special Melee Weapon . | . . Unidentified Prototypes . | . . Parts Lost 6 | . 6 Power 1 | . 1 Propulsion 3 | . 3 Utility . | . . Weapon 2 | . 2 Highest Loss Streak 6 | . 6 To Critical Strikes . | . . Average Slot Usage (%) 95 | . 95 Engine 13 | . 13 Treads 9 | . 9 Leg 14 | . 14 Flight 3 | . 3 Device 12 | . 12 Storage 14 | . 14 Ballistic Gun 25 | . 25 Naked Turns . | . . Heaviest Build 51 | 14 51 Greatest Support 40 | 40 40 Greatest Overweight (x) 11 | 3 11 Average Overweight (x) . | . . Largest Inventory Capacity 20 | 8 20 Average Capacity 9 | 7 9 Most Carried 6 | 4 6 Average Carried 2 | . 2 Final Capacity 20 | 8 20 Final Carried 5 | . 5 Class Distribution -------------------- 100% | Mutant Dominant Class ---------------- Mutant | -10/Materials Resources | -11 -10 ----------- Run | Scr Mat Matter Collected 338 | 149 189 Remotely . | . . Salvage Created 135 | . 135 Parts 11 | . 11 Haulers Intercepted . | . . Recyclers Shooed . | . . Parts Field Recycled . | . . Retrieved Matter . | . . Parts Self-Destructed . | . . Prevented . | . . Kills | -11 -10 ------- Run | Scr Mat Combat Hostiles Destroyed 5 | . 5 Guns 5 | . 5 Classes Destroyed 2 | . 2 Swarmer 3 | . 3 Grunt 2 | . 2 Best Kill Streak 3 | . 3 Combat Bots Only 3 | . 3 Max Kills in Single Turn 1 | . 1 Gunslinging . | . . Exploded . | . . Melee . | . . Uniques/NPCs Destroyed . | . . Combat | -11 -10 -------- Run | Scr Mat Damage Taken 937 | . 937 Core 253 | . 253 Absorbed by Shields . | . . Core Remaining (%) 100 | 100 . Volleys Fired 23 | . 23 Largest 2 | . 2 Hottest 40 | . 40 Shots Fired 36 | . 36 Gun 36 | . 36 Cannon . | . . Launcher . | . . Special . | . . Kinetic 36 | . 36 Thermal . | . . Explosive . | . . Electromagnetic . | . . Robot Hit Streak 5 | . 5 Robot Miss Streak 5 | . 5 Penetration Max . | . . Secondary Targets 1 | . 1 Max Gunslinging Chain 1 | . 1 Shots Hit Robots 18 | . 18 Core Hits 10 | . 10 Critical Kills . | . . Critical Parts Destroyed . | . . Critical Strikes . | . . Melee Attacks . | . . Impact . | . . Slashing . | . . Piercing . | . . Sneak Attacks . | . . Combat Hostiles . | . . Follow-up Attacks . | . . Damage Inflicted 251 | . 251 Guns 250 | . 250 Cannons . | . . Explosions . | . . Melee . | . . Ramming 1 | . 1 Kinetic 250 | . 250 Thermal . | . . Explosive . | . . Electromagnetic . | . . Impact . | . . Slashing . | . . Piercing . | . . Highest Corruption . | . . Average Corruption . | . . Corruption Purged . | . . Corruption Blocked . | . . Overload Shots . | . . Overflow Damage . | . . Projectiles . | . . Explosions . | . . Melee . | . . Knockbacks . | . . Impact . | . . Kinetic . | . . Secondary . | . . Self-Inflicted Damage . | . . Shots . | . . Rammed 1 | . 1 Targets Rammed 1 | . 1 Kicked . | . . Crushed . | . . Highest Temperature 6 | . 6 Average Temperature 5 | . 5 Received Heat Transfer 480 | . 480 Siege Activations . | . . Robots Corrupted . | . . Combat Hostiles . | . . Parts Fried . | . . Impact Corruptions . | . . Robots Melted . | . . Combat Hostiles . | . . Parts Melted . | . . Heat Transferred . | . . Parts Sabotaged . | . . Parts Stolen . | . . Parts Stripped . | . . Power Chain Reactions . | . . Missiles Intercepted . | . . Alert | -11 -10 ------- Run | Scr Mat Peak Influence 160 | . 160 Initial . | . . Average 73 | . 87 Maximum Alert Level . | . . Low Security (%) 100 | 100 100 Level 1 . | . . Level 2 . | . . Level 3 . | . . Level 4 . | . . Level 5 . | . . High Security . | . . Max Security . | . . Squads Dispatched 2 | . 2 Investigation . | . . Extermination . | . . Reinforcement 2 | . 2 Assault . | . . Garrison . | . . Intercept . | . . Searches Triggered . | . . Construction Impeded . | . . Haulers Reinforced . | . . Active Scanning Responses . | . . Cargo Convoy Interrupts . | . . Stealth | -11 -10 --------- Run | Scr Mat Distress Signals 1 | . 1 Communications Jammed . | . . Distress Signals . | . . Times Spotted 15 | . 15 Peak Tracking Total 3 | . 3 Tactical Retreats 4 | . 4 Traps | -11 -10 ------- Run | Scr Mat Traps Triggered . | . . Indirectly . | . . Trap Hack Attempts . | . . Triggered . | . . Disarmed . | . . Reprogrammed . | . . Reused . | . . Traps Extracted . | . . Installed . | . . Triggered . | . . Machines | -11 -10 ---------- Run | Scr Mat Machines Disabled . | . . Max in Single Turn . | . . Machines Sabotaged . | . . Garrisons Compromised . | . . Overloaded Fab Kills . | . . Hacking | -11 -10 --------- Run | Scr Mat Machines Accessed . | . . Terminals . | . . Fabricators . | . . Repair Stations . | . . Recycling Units . | . . Scanalyzers . | . . Garrison Access . | . . Total Hacks . | . . Successful . | . . Failed . | . . Catastrophic . | . . Database Lockouts . | . . Manual . | . . Terminals . | . . Fabricators . | . . Repair Stations . | . . Recycling Units . | . . Scanalyzers . | . . Garrison Access . | . . Terminal Hacks . | . . Fabricator Hacks . | . . Repair Station Hacks . | . . Recycling Unit Hacks . | . . Scanalyzer . | . . Garrison Access Hacks . | . . Unauthorized Hacks . | . . Terminals . | . . Fabricators . | . . Repair Stations . | . . Recycling Units . | . . Scanalyzers . | . . Garrison Access . | . . Data Cores Recovered . | . . Used . | . . Hacking Detections . | . . Full Trace Events . | . . Feedback Events . | . . Feedback Blocked . | . . Robot Schematics Acquired . | . . Robots Built . | . . Authchips . | . . Time . | . . Total Robot Build Rating . | . . Part Schematics Acquired . | . . Parts Built . | . . Authchips . | . . Time . | . . Total Part Build Rating . | . . Parts Repaired . | . . Time . | . . Parts Recycled . | . . Recycled Matter . | . . Retrieved Matter . | . . Retrieved Components . | . . Parts Scanalyzed . | . . Part Schematics Acquired . | . . Parts Damaged . | . . Bothacking | -11 -10 ------------ Run | Scr Mat Used RIF Installer . | . . Robots Hacked . | . . Non-combat . | . . Combat . | . . Robot Hacks Applied . | . . Relay Couplers Released . | . . Fabnet Peak Effective % . | . . Robots Rewired . | . . Allies Hacked . | . . Hacks Repelled . | . . Allies | -11 -10 -------- Run | Scr Mat Total Allies . | . . Largest Group . | . . Highest-Rated Group . | . . Highest-Rated Ally . | . . Total Orders . | . . Ally Attacks . | . . Total Damage . | . . Kills . | . . Allies Corrupted . | . . Allies Melted . | . . Intel | -11 -10 ------- Run | Scr Mat Robot Analysis Total . | . . Derelict Logs Recovered . | . . Drone Launches . | . . Drone Recoveries . | . . Exploration | -11 -10 ------------- Run | Scr Mat Turns Passed 602 | 94 508 Spaces Moved 347 | 51 296 Core 21 | 21 . Treads 128 | 30 98 Legs 195 | . 195 Wheels . | . . Hover . | . . Flight 3 | . 3 Fastest Speed 50 | 50 120 Average Speed 142 | 150 141 Slowest Speed 940 | 200 940 Overloaded Moves . | . . Propulsion Burnouts . | . . Robots Hopped . | . . Cave-ins Triggered . | . . Exploration Rate (%) 22 | 6 38 Regions Visited 1 Branch Regions . Pre-discovered Areas . | . . Known Exits Taken . | . . Unknown Exits Taken 1 | 1 . Scrap Searched . | . . Spaces Dug . | . . Terrain Destroyed . | . . Melee . | . . Projectile . | . . AOE . | . . Terrain Rammed . | . . Walls Destroyed . | . . Machines Disabled . | . . Actions | -11 -10 --------- Run | Scr Mat Total 413 | 68 345 Wait 7 | 6 1 Move 346 | 50 296 Hop . | . . Pick Up 16 | 6 10 Fast Attach . | . . Attach 12 | 6 6 Detach 3 | . 3 Swap 3 | . 3 Drop 2 | . 2 Fire 23 | . 23 Melee . | . . Ram 1 | . 1 Kick . | . . Crush . | . . Escape Stasis . | . . Rewire . | . . Trap . | . . Miscellaneous . | . . Route ------- -11/Scrapyard -10/Materials (discovered 1 exit: [*Min]) History --------- Turn | Location | Event 12 | -11/Scrapyard | Discovered new exit (range 16) 95 | -11/Scrapyard | Entered Materials 325 | -10/Materials | Build established: Mutant 370 | -10/Materials | Discovered new exit (range 12) 572 | -10/Materials | Core integrity fell below 50% 598 | -10/Materials | Core integrity fell below 20% 603 | -10/Materials | Destroyed by G-34 Mercenary with Small Laser Last Messages --------------- 00460_ U-05 Engineer lays Concrete. 00461_ U-05 Engineer builds a Wall. 00461_ T-07 Excavator is excavating. 00528_ Acquired Datajack. 00532_ Acquired Hcp. Storage Unit. 00533_ Dropped Sml. Storage Unit. 00543_ Assault Rifle destroyed. 00545_ Acquired Flight Unit. 00556_ R-06 Scavenger collects Tractor Beam. 00567_ Aluminum Leg destroyed. 00575_ Assault Rifle destroyed. 00587_ Acquired Flight Unit. 00593_ Flight Unit destroyed. 00595_ K-01 Serf collects debris. 00595_ Ion Engine destroyed. 00597_ Slammed into G-34 Mercenary. 00597_ Destabilizing: Core damaged (-12). 00599_ K-01 Serf collects debris. 00601_ Flight Unit destroyed. [Achievement: First Step to Greatness] Map ----- +----------------------------------------------------+ | | | | | | | | | | | | | | | | | | | | | | | | | | | | | | | ???????????????????????????????????????????? | | ???????????????????????????????????????????? | | ???????????????????????????????????????????? | | ???????????????????????????????????????????? | | ???????????????????????????????????????????? | | ???????????????????????????????????????????? | | ???????????????????????????????????????????? | | ????????????????#########+#########+###????? | | ????????????????+ #????? | | ?????????????????# g #????? | | ?????????????????# #####@#########+####???? | | ?????????????????# # # #???? | | ??? ########### # # """ #???? | | ??? % % # g # "R" #???? | | ???# % ^ + = # " " #???? | | ???? ##########+## # #???? | | ?????????????# # # """"" #???? | | ?????????????# # k # """"" #???? | | ?????????????# # ! # """"" #???? | | ?????????????# ########### #???? | | ?????????????# #?????????####+#####???? | | ?????????????# #????????????# #???????? | | ???? ##########+############### #####???? | | ??? #???? | | ??? #???? | | ??? #???? | | ???? ########## ###### #???? | | ????!* """ ??????????# #????# * #???? | | ????? """???????????# #????# ##/##### | | ?????????""????????????# #????# ## = # | | ???????????????????????# #????# ## # | | ???????????????????????# #????# ## # | | ???????????????????????# #???## ##= # | | ???????????????????????# #???# # """ # | | ???????????????????????# #???# # """ # | +----------------------------------------------------+ Best States ------------- Heat Dissipation 25 Energy Generation 10 Energy Capacity 250 Matter Stores 250 Matter Capacity 300 Sight Range 16 Terrain Scan Density 10 ECM Strength 1 Evasion (%) 55 Recoil Reduction 2 Item Schematics ----------------- None Robot Schematics ------------------ None Fabricated ------------ Nothing Alien Tech Used ----------------- None Achievements -------------- First Step to Greatness Storm Trooper Uninvited Guest Challenges ------------ None Game ------ Seed ActiveAlloyRail Manual? 0 Play Time 00:15:28 Cumulative 4.7 hours Start 2022.05.21 @ 21:56:06 End 2022.05.21 @ 22:08:50 Sessions 1 Manual Loads 0 Difficulty Rogue Special Mode None Game No. 8 Rogue 8 Adventurer 0 Explorer 0 Win Type - Total 0 Types 0/0/0/0/0/0/0/0/0 Lore% 3 Gallery% 10 Achievement% 1 Wizard Run 0 Options --------- ASCII 0 Keyboard 0 Movement Numpad Keybinds 0 Fullscreen 2 Font 18/SmallcapsGlow Map View 76x50 Tactical HUD 1 Map Filters NONE Filters NONE Steam 1 RUN: f1837d53-c3ec-47c7-a3c4-ab8e9e5b0f70